bitfinex-derivatives/quotes_SOLF0:USTF0_20240824
["timestamp","ask_amount","ask_price","bid_price","bid_amount"]
[1724507061900,7.78,157.87,157.84,0.04156975]
[1724507065599,10.9457,157.87,157.84,0.04156975]
[1724507066593,7.78,157.85,157.84,0.04156975]
[1724507068199,10.9461,157.85,157.78,3.1674]
[1724507068395,7.78,157.83,157.77,10.9476]
[1724507068590,7.78,157.83,157.78,0.87158746]
[1724507069197,0.04288218,157.82,157.79,0.04320831]
[1724507070699,7.82288218,157.82,157.79,0.04320831]
[1724507070897,0.04288218,157.82,157.79,0.04320831]
[1724507075304,0.04288218,157.82,157.81,7.78]
[1724507075509,0.04288218,157.82,157.79,3.13074695]
[1724507075808,0.04288218,157.82,157.81,7.78]
[1724507077313,0.04288218,157.82,157.8,3.1669]
[1724507077513,0.04288218,157.82,157.81,7.78]
[1724507080201,0.04288218,157.82,157.81,10.9469]
[1724507080510,7.78,157.9,157.81,10.9469]
[1724507080711,7.78,157.9,157.83,7.78]
[1724507081609,0.04069272,157.88,157.85,0.04819127]
[1724507085515,7.82069272,157.88,157.85,0.04819127]
[1724507086715,10.98629272,157.88,157.85,0.04819127]
[1724507087519,7.78,157.87,157.85,0.04819127]
[1724507090812,7.78,157.86,157.85,0.04819127]
[1724507094922,7.78,157.87,157.85,0.04819127]
[1724507097524,0.04069272,157.88,157.85,7.82819127]
[1724507098023,0.04069272,157.88,157.85,0.04819127]
[1724507102329,0.04069272,157.88,157.86,10.9457]
[1724507102541,0.04069272,157.88,157.85,0.04819127]
[1724507102834,0.04069272,157.88,157.85,7.82819127]
[1724507103024,0.04069272,157.88,157.85,0.04819127]
[1724507103230,7.82069272,157.88,157.85,0.04819127]
[1724507103632,7.78,157.87,157.85,0.04819127]
[1724507104539,0.04069272,157.88,157.85,7.82819127]
[1724507104936,0.04069272,157.88,157.85,0.04819127]
[1724507105935,3.1659,157.86,157.76,17.57872081]
[1724507106234,2.5084,157.92,157.77,11.633]
[1724507106235,7.78,157.83,157.77,11.633]
[1724507106535,2.5084,157.92,157.78,0.87096151]
[1724507106736,7.78,157.84,157.79,3.22194743]
[1724507107033,0.04744704,157.83,157.8,0.04502687]
[1724507107235,0.04687158,157.83,157.8,0.0475876]
[1724507108242,0.04687158,157.83,157.82,7.78]
[1724507108435,7.78,157.91,157.82,7.78]
[1724507108740,7.78,157.91,157.83,2.5916]
[1724507108934,7.78,157.91,157.83,3.8224]
[1724507109342,0.04610204,157.89,157.85,0.04037747]
[1724507109837,7.82610204,157.89,157.85,0.04037747]
[1724507114047,0.04610204,157.89,157.85,0.04037747]
[1724507114243,7.78,157.92,157.86,7.78]
[1724507115248,7.78,157.92,157.87,0.0456017]
[1724507115940,7.78,157.9,157.87,0.0456017]
[1724507116640,7.78,157.88,157.87,0.0456017]
[1724507118342,7.78,157.9,157.87,0.0456017]
[1724507120549,7.78,157.88,157.87,0.0456017]
[1724507133962,10.9455,157.88,157.87,0.0456017]
[1724507134157,10.9455,157.88,157.77,11.5877]
[1724507134365,7.78,157.84,157.78,0.87257928]
[1724507134661,7.78,157.84,157.79,3.1671]
[1724507135163,0.04266156,157.83,157.8,0.04718387]
[1724507136562,0.04266156,157.83,157.8,7.82718387]
[1724507136768,0.04266156,157.83,157.8,10.99418387]
[1724507137067,0.04266156,157.83,157.82,7.78]
[1724507138662,0.04266156,157.83,157.8,10.99418387]
[1724507139263,0.04266156,157.83,157.8,0.04718387]
[1724507140470,0.04266156,157.83,157.81,7.78]
[1724507144370,0.04266156,157.83,157.81,10.9468]
[1724507147369,0.04266156,157.83,157.8,6.35190604]
[1724507147570,0.04266156,157.83,157.81,7.78]
[1724507166090,0.04266156,157.83,157.8,3.21418387]
[1724507166286,0.04266156,157.83,157.8,7.82718387]
[1724507172897,0.04266156,157.83,157.8,0.04718387]
[1724507173101,0.04266156,157.83,157.8,7.82718387]
[1724507183308,0.04266156,157.83,157.82,7.78]
[1724507186706,0.04266156,157.83,157.8,7.82718387]
[1724507191035,0.04266156,157.83,157.8,0.04718387]
[1724507191316,0.04266156,157.83,157.8,7.82718387]
[1724507196123,0.04266156,157.83,157.8,10.99418387]
[1724507196413,0.04266156,157.83,157.82,7.78]
[1724507204313,0.04266156,157.83,157.8,0.04718387]
[1724507205715,0.04266156,157.83,157.81,7.78]
[1724507206616,0.04266156,157.83,157.82,7.78]
[1724507211420,0.04266156,157.83,157.81,6.26371323]
[1724507211623,0.04266156,157.83,157.82,7.78]
[1724507215425,0.04266156,157.83,157.81,7.78]
[1724507219228,0.04266156,157.83,157.8,0.04718387]
[1724507219428,0.04266156,157.83,157.8,7.82718387]
[1724507221232,0.04266156,157.83,157.81,7.78]
[1724507226133,0.04266156,157.83,157.8,0.04718387]
[1724507228632,0.04266156,157.83,157.8,7.82718387]
[1724507228841,0.04266156,157.83,157.82,7.78]
[1724507238342,0.04266156,157.83,157.8,0.04718387]
[1724507238343,0.04266156,157.83,157.8,7.82718387]
[1724507239042,0.04266156,157.83,157.8,0.04718387]
[1724507239387,7.82266156,157.83,157.8,0.04718387]
[1724507240247,10.98916156,157.83,157.8,0.04718387]
[1724507240639,7.82266156,157.83,157.8,0.04718387]
[1724507242037,10.98916156,157.83,157.8,0.04718387]
[1724507242233,7.82266156,157.83,157.8,0.04718387]
[1724507242835,7.78,157.81,157.8,0.04718387]
[1724507243841,7.78,157.81,157.77,0.8724052]
[1724507244341,10.947,157.81,157.77,0.8724052]
[1724507244846,10.947,157.81,157.77,0.0447035]
[1724507245775,7.78,157.81,157.77,0.0447035]
[1724507246236,7.78,157.81,157.77,0.91709842]
[1724507246437,7.78,157.8,157.77,0.0447035]
[1724507247346,10.9472,157.8,157.77,0.0447035]
[1724507249349,3.1672,157.8,157.77,0.0447035]
[1724507250148,7.78,157.78,157.76,0.87192006]
[1724507250452,7.78,157.77,157.71,2.91733706]
[1724507250646,1.3069,157.81,157.73,7.78]
[1724507250848,1.3069,157.81,157.74,0.80448982]
[1724507251045,3.22687935,157.87,157.8,7.78]
[1724507251046,7.78,157.86,157.8,7.78]
[1724507251249,0.04256024,157.85,157.81,0.04561123]
[1724507251851,3.1665,157.84,157.81,0.04561123]
[1724507252280,3.25123458,157.85,157.81,0.04561123]
[1724507252453,3.1665,157.83,157.81,0.04561123]
[1724507253759,10.9464,157.84,157.81,0.04561123]
[1724507254054,7.78,157.84,157.81,0.04561123]
[1724507254558,10.9465,157.84,157.81,0.04561123]
[1724507255667,3.1666,157.83,157.81,0.04561123]
[1724507255858,7.78,157.82,157.81,0.04561123]
[1724507256447,10.9467,157.82,157.81,0.04561123]
[1724507257854,7.78,157.82,157.81,0.04561123]
[1724507258061,7.78,157.84,157.81,0.04561123]
[1724507258455,4.48443458,157.85,157.81,0.04561123]
[1724507258657,7.78,157.82,157.81,0.04561123]
[1724507258977,10.9467,157.82,157.81,0.04561123]
[1724507263359,10.9467,157.82,157.76,0.80397458]
[1724507263360,3.167,157.81,157.76,0.80397458]
[1724507263563,7.78,157.78,157.72,2.91733706]
[1724507263770,7.78,157.78,157.73,0.8040582]
[1724507264576,0.04500284,157.77,157.74,0.04599947]
[1724507265571,0.04500284,157.77,157.74,0.85007035]
[1724507265771,0.04500284,157.77,157.75,0.80407088]
[1724507265968,0.04500284,157.77,157.76,0.80407088]
[1724507266370,0.04500284,157.77,157.74,0.04599947]
[1724507266876,0.04500284,157.77,157.74,0.85007035]
[1724507267092,0.04500284,157.77,157.75,0.80407088]
[1724507267666,0.04500284,157.77,157.74,0.04599947]
[1724507269275,0.04500284,157.77,157.74,7.82599947]
[1724507269476,0.04500284,157.77,157.75,0.80377176]
[1724507269676,0.04500284,157.77,157.76,0.80369408]
[1724507269878,0.04500284,157.77,157.75,0.80363661]
[1724507270081,0.04500284,157.77,157.76,0.80363661]
[1724507270379,0.04500284,157.77,157.75,0.80363661]
[1724507270776,0.04500284,157.77,157.74,7.82599947]
[1724507270977,0.04500284,157.77,157.75,0.80356793]
[1724507274078,0.04500284,157.77,157.74,7.82599947]
[1724507274281,0.04500284,157.77,157.75,0.80366154]
[1724507275580,0.04500284,157.77,157.76,0.80365398]
[1724507275887,0.04500284,157.77,157.74,0.84965345]
[1724507276073,0.04500284,157.77,157.75,0.80365398]
[1724507276272,0.04500284,157.77,157.76,0.80365398]
[1724507276680,0.04500284,157.77,157.74,0.84965345]
[1724507276879,0.04500284,157.77,157.75,0.80365398]
[1724507277069,0.04500284,157.77,157.76,0.80365398]
[1724507277878,0.04500284,157.77,157.74,0.84965345]
[1724507278274,0.04500284,157.77,157.74,0.04599947]
[1724507278473,0.04500284,157.77,157.74,0.8496475]
[1724507285191,7.82500284,157.77,157.74,0.8496475]
[1724507285883,7.78,157.76,157.74,0.8496475]
[1724507286794,7.78,157.76,157.75,0.80364803]
[1724507287088,7.78,157.76,157.74,0.04599947]
[1724507287281,7.78,157.76,157.74,0.8496475]
[1724507287481,7.78,157.76,157.75,0.80364803]
[1724507287681,7.78,157.76,157.74,0.04599947]
[1724507287881,0.04500284,157.77,157.74,0.04599947]
[1724507288086,7.78,157.76,157.74,0.04599947]
[1724507288485,7.78,157.75,157.74,0.04599947]
[1724507290381,7.78,157.75,157.74,0.8496475]
[1724507291087,7.78,157.75,157.71,2.91733706]
[1724507291293,7.78,157.72,157.71,2.91733706]
[1724507291489,7.78,157.72,157.71,4.637476]
[1724507292088,7.78,157.73,157.71,4.637476]
[1724507292291,7.82542767,157.73,157.72,0.80465976]
[1724507292597,7.82542767,157.73,157.71,0.80465976]
[1724507292794,7.82542767,157.73,157.72,0.80465976]
[1724507293388,7.82542767,157.73,157.71,0.80465976]
[1724507293582,7.82542767,157.73,157.72,0.80465976]
[1724507294287,7.82542767,157.73,157.7,0.04643961]
[1724507294486,7.82542767,157.73,157.7,3.70653545]
[1724507294693,7.82542767,157.73,157.71,0.74275878]
[1724507296005,0.04542767,157.73,157.71,0.74275878]
[1724507296994,0.04542767,157.73,157.7,0.04643961]
[1724507297498,0.04542767,157.73,157.7,0.78919839]
[1724507298798,0.04542767,157.73,157.71,0.74341152]
[1724507298990,0.04542767,157.73,157.7,0.78985113]
[1724507299197,0.04542767,157.73,157.71,0.74341152]
[1724507299418,0.04542767,157.73,157.7,0.04643961]
[1724507306698,7.82542767,157.73,157.7,0.78985113]
[1724507306904,7.82542767,157.73,157.71,0.74341152]
[1724507307199,7.82542767,157.73,157.72,0.74341152]
[1724507307402,7.82542767,157.73,157.7,0.04643961]
[1724507309602,0.04542767,157.73,157.7,0.04643961]
[1724507309897,0.04542767,157.73,157.72,7.78]
[1724507310198,44.25921307,157.79,157.72,8.52333429]
[1724507310400,44.25921307,157.79,157.73,0.74333429]
[1724507310596,44.25921307,157.79,157.77,7.78]
[1724507310800,3.8878,157.84,157.77,7.78]
[1724507310992,11.6678,157.84,157.77,7.78]
[1724507311196,0.04431643,157.82,157.79,0.0400003]
[1724507312702,7.82431643,157.82,157.79,0.0400003]
[1724507312998,7.78,157.8,157.79,0.0400003]
[1724507313396,7.78,157.8,157.7,9.77790153]
[1724507313591,3.8878,157.84,157.7,9.77790153]
[1724507313592,7.78,157.78,157.71,0.74350153]
[1724507314305,7.78,157.78,157.72,7.78]
[1724507314500,0.04805345,157.76,157.73,0.7845878]
[1724507317601,0.04805345,157.76,157.74,0.74350908]
[1724507317805,0.04805345,157.76,157.75,0.74350908]
[1724507318207,0.04805345,157.76,157.73,0.78459535]
[1724507320612,0.04805345,157.76,157.73,0.04108627]
[1724507320909,0.04805345,157.76,157.73,0.78479317]
[1724507325009,0.04805345,157.76,157.73,0.04108627]
[1724507325208,0.04805345,157.76,157.73,0.78480238]
[1724507329408,0.04805345,157.76,157.74,0.74371517]
[1724507329607,0.04805345,157.76,157.75,0.74371517]
[1724507329805,0.04805345,157.76,157.73,0.78480144]
[1724507330003,0.04805345,157.76,157.74,0.74373125]
[1724507330210,0.04805345,157.76,157.75,0.74373125]
[1724507330511,0.04805345,157.76,157.73,0.78481752]
[1724507330815,0.04805345,157.76,157.74,0.74373125]
[1724507331015,0.04805345,157.76,157.75,0.74373125]
[1724507331418,0.04805345,157.76,157.73,0.78481752]
[1724507337914,0.04805345,157.76,157.73,0.04108627]
[1724507338117,0.04805345,157.76,157.73,0.78498618]
[1724507341020,0.04805345,157.76,157.74,0.74391618]
[1724507341618,0.04805345,157.76,157.75,0.74391618]
[1724507342020,0.04805345,157.76,157.73,0.78478346]
[1724507342220,0.04805345,157.76,157.74,0.74369563]
[1724507342420,0.04805345,157.76,157.75,0.74369563]
[1724507342615,0.04805345,157.76,157.73,0.7847819]
[1724507342822,0.04805345,157.76,157.74,0.74369563]
[1724507343018,0.04805345,157.76,157.75,0.74369563]
[1724507343626,7.82805345,157.76,157.73,0.7847819]
[1724507343917,7.82805345,157.76,157.74,0.74369563]
[1724507344122,7.82805345,157.76,157.75,0.74369563]
[1724507344321,7.82805345,157.76,157.73,0.7847819]
[1724507344522,7.82805345,157.76,157.74,0.74369563]
[1724507344716,7.82805345,157.76,157.75,0.74369563]
[1724507345319,7.82805345,157.76,157.73,0.78443642]
[1724507346127,0.04805345,157.76,157.73,0.78443642]
[1724507346339,7.82805345,157.76,157.73,0.78443642]
[1724507347322,7.78,157.74,157.73,0.78443642]
[1724507348517,7.78,157.74,157.73,0.04108627]
[1724507351733,7.78,157.74,157.69,0.74335015]
[1724507351925,7.78,157.71,157.7,0.74335015]
[1724507352230,7.78,157.71,157.68,0.74335015]
[1724507352427,7.78,157.71,157.69,3.34291236]
[1724507352620,7.78,157.71,157.7,0.74335015]
[1724507353433,7.78,157.71,157.68,0.79100184]
[1724507353625,7.78,157.71,157.69,3.34264641]
[1724507353827,7.78,157.71,157.7,0.74287659]
[1724507354428,7.78,157.71,157.68,0.79052828]
[1724507354629,7.78,157.71,157.69,3.34243904]
[1724507354828,7.78,157.71,157.7,0.74287659]
[1724507355747,7.78,157.71,157.68,0.79052828]
[1724507356034,7.78,157.71,157.69,0.74287659]
[1724507356230,7.78,157.71,157.68,0.04765169]
[1724507356231,7.78,157.71,157.68,0.79052828]
[1724507356435,7.78,157.71,157.69,0.74287659]
[1724507356636,7.78,157.71,157.7,0.74287659]
[1724507357032,7.78,157.71,157.68,0.04765169]
[1724507357228,7.78,157.71,157.68,0.79052828]
[1724507357438,7.78,157.71,157.69,0.74287659]
[1724507357738,7.78,157.71,157.7,0.74287659]
[1724507358030,7.78,157.71,157.68,0.04765169]
[1724507358937,7.78,157.71,157.68,3.38933133]
[1724507359136,7.78,157.71,157.69,0.74287659]
[1724507359338,7.78,157.71,157.7,0.74287659]
[1724507359933,7.78,157.71,157.68,0.04765169]
[1724507361231,7.78,157.71,157.68,2.64580459]
[1724507361436,7.78,157.71,157.69,0.74287659]
[1724507361832,7.78,157.71,157.7,0.74287659]
[1724507362539,7.78,157.71,157.68,0.04765169]
[1724507362736,7.78,157.71,157.68,0.79069864]
[1724507362940,7.78,157.71,157.69,0.74304695]
[1724507363241,7.78,157.71,157.7,0.74304695]
[1724507363435,7.78,157.71,157.68,0.04765169]
[1724507363835,7.78,157.71,157.68,0.79069864]
[1724507364034,7.78,157.71,157.68,0.04765169]
[1724507364440,7.78,157.71,157.68,0.79069864]
[1724507364643,7.78,157.71,157.69,0.74304695]
[1724507364843,7.78,157.71,157.7,0.74304695]
[1724507365245,7.78,157.71,157.68,0.04765169]
[1724507365640,7.78,157.71,157.68,0.79069864]
[1724507366037,7.78,157.71,157.69,0.74304695]
[1724507366239,7.78,157.71,157.7,0.74304695]
[1724507366461,0.04197266,157.72,157.7,0.74304695]
[1724507366639,7.78,157.71,157.68,0.04765169]
[1724507367750,7.78,157.71,157.68,0.79118214]
[1724507367950,7.78,157.71,157.69,0.74353045]
[1724507368140,0.04197266,157.72,157.7,0.74353045]
[1724507368447,0.04197266,157.72,157.71,8.52353045]
[1724507368640,7.78,157.78,157.71,8.52353045]
[1724507368843,7.78,157.78,157.72,0.74353045]
[1724507369657,0.04012559,157.77,157.73,0.04424785]
[1724507371043,0.04012559,157.77,157.73,0.78787627]
[1724507371243,0.04012559,157.77,157.73,0.04424785]
[1724507373738,7.82012559,157.77,157.73,0.04424785]
[1724507374953,7.82012559,157.77,157.73,0.78787627]
[1724507375145,7.82012559,157.77,157.74,0.74362842]
[1724507375451,7.82012559,157.77,157.75,0.74365189]
[1724507375655,7.82012559,157.77,157.73,0.04424785]
[1724507376751,0.04012559,157.77,157.73,0.04424785]
[1724507377648,0.04012559,157.77,157.73,7.82424785]
[1724507377852,0.04012559,157.77,157.74,0.74363829]
[1724507378357,0.04012559,157.77,157.75,0.74363829]
[1724507378551,0.04012559,157.77,157.76,0.74363829]
[1724507378952,0.04012559,157.77,157.73,0.78788614]
[1724507379254,0.04012559,157.77,157.74,0.74363829]
[1724507379443,0.04012559,157.77,157.75,0.74359728]
[1724507379659,0.04012559,157.77,157.76,0.74359728]
[1724507380045,0.04012559,157.77,157.73,0.78784513]
[1724507380249,0.04012559,157.77,157.74,0.74359728]
[1724507380448,0.04012559,157.77,157.75,0.74359728]
[1724507380643,0.04012559,157.77,157.76,0.74359728]
[1724507381055,0.04012559,157.77,157.74,0.74359728]
[1724507381357,7.78,157.81,157.74,0.74359728]
[1724507382053,44.83261278,157.82,157.74,0.74359728]
[1724507382054,22.15643312,157.94,157.77,7.78]
[1724507382355,22.15643312,157.94,157.8,0.04516462]
[1724507382356,0.04574027,157.83,157.8,0.04516462]
[1724507382554,7.82047083,157.83,157.8,0.04119951]
[1724507384655,7.78,157.81,157.8,0.04119951]
[1724507384846,0.04047083,157.83,157.8,0.04119951]
[1724507385046,7.78,157.81,157.8,0.04119951]
[1724507388763,0.04047083,157.83,157.8,0.04119951]
[1724507388965,7.78,157.81,157.8,0.04119951]
[1724507390165,0.04047083,157.83,157.8,0.04119951]
[1724507390355,7.78,157.82,157.8,0.04119951]
[1724507395168,0.04047083,157.83,157.8,0.04119951]
[1724507395382,7.82047083,157.83,157.8,0.04119951]
[1724507397064,7.78,157.82,157.8,0.04119951]
[1724507404672,7.78,157.82,157.74,26.6195]
[1724507404968,7.78,157.78,157.75,0.74345988]
[1724507405661,7.82672684,157.78,157.75,0.78622335]
[1724507407267,7.82672684,157.78,157.76,0.74345988]
[1724507407462,7.82672684,157.78,157.75,0.04276347]
[1724507408067,0.04672684,157.78,157.75,0.04276347]
[1724507408862,0.04672684,157.78,157.75,7.82276347]
[1724507409068,0.04672684,157.78,157.76,0.74348261]
[1724507409271,0.04672684,157.78,157.76,3.27948261]
[1724507409471,0.04672684,157.78,157.77,0.74348261]
[1724507410264,0.04672684,157.78,157.75,0.04276347]
[1724507412368,0.04672684,157.78,157.75,0.78624608]
[1724507413665,0.04672684,157.78,157.75,8.56624608]
[1724507413867,0.04672684,157.78,157.76,0.74348261]
[1724507416173,0.04672684,157.78,157.77,0.74347025]
[1724507416770,7.78,157.83,157.77,0.74347025]
[1724507416771,7.78,157.83,157.77,7.78]
[1724507416978,7.78,157.84,157.78,3.21154296]
[1724507417167,3.1653,157.89,157.79,7.78]
[1724507417383,7.78,157.87,157.79,7.78]
[1724507417673,6.33001939,157.86,157.79,7.78]
[1724507417874,0.04089321,157.84,157.81,0.04708777]
[1724507418076,7.82089321,157.84,157.81,0.04708777]
[1724507419374,0.04089321,157.84,157.81,7.82708777]
[1724507421971,0.04089321,157.84,157.81,0.04708777]
[1724507432983,0.04089321,157.84,157.81,7.82708777]
[1724507433892,3.9962,157.92,157.82,7.78]
[1724507433893,7.78,157.89,157.82,7.78]
[1724507434186,6.32944835,157.88,157.82,9.1033]
[1724507434382,7.78,157.89,157.82,1.3233]
[1724507434587,6.32944864,157.88,157.79,3.2311738]
[1724507434786,7.78,157.85,157.78,10.3382]
[1724507434978,0.04134736,157.83,157.8,0.04824791]
[1724507435378,7.82134736,157.83,157.8,0.04824791]
[1724507435987,0.04134736,157.83,157.8,0.04824791]
[1724507436191,7.82134736,157.83,157.8,0.04824791]
[1724507436686,0.04134736,157.83,157.8,0.04824791]
[1724507436888,7.78,157.82,157.8,0.04824791]
[1724507440994,7.78,157.82,157.77,61.71234848]
[1724507441194,7.78,157.78,157.77,61.71234848]
[1724507441395,7.78,157.78,157.76,25.32]
[1724507441691,7.78,157.79,157.76,25.32]
[1724507442096,7.82044163,157.79,157.76,25.36580886]
[1724507442497,7.82044163,157.79,157.77,0.74336627]
[1724507443993,0.04044163,157.79,157.77,0.74336627]
[1724507444898,0.04044163,157.79,157.76,25.36580886]
[1724507445291,0.04044163,157.79,157.76,0.04580886]
[1724507446798,0.04044163,157.79,157.76,0.78931117]
[1724507448311,0.04044163,157.79,157.77,7.78]
[1724507462823,0.04044163,157.79,157.78,7.78]
[1724507468620,0.04044163,157.79,157.78,10.9956591]
[1724507468823,0.04044163,157.79,157.78,11.73778064]
[1724507469329,0.04044163,157.79,157.78,3.95778064]
[1724507469516,0.04044163,157.79,157.76,0.04580886]
[1724507469820,0.04044163,157.79,157.77,7.78]
[1724507474040,0.04044163,157.79,157.76,0.04580886]
[1724507474328,0.04044163,157.79,157.76,7.82580886]
[1724507479026,0.04044163,157.79,157.77,0.74285453]
[1724507482128,0.04044163,157.79,157.76,7.82580886]
[1724507482530,0.04044163,157.79,157.77,0.74284976]
[1724507482930,0.04044163,157.79,157.76,7.82580886]
[1724507483131,0.04044163,157.79,157.77,0.74283727]
[1724507483629,0.04044163,157.79,157.76,7.82580886]
[1724507484637,0.04044163,157.79,157.77,0.74285924]
[1724507485331,0.04044163,157.79,157.77,8.52285924]
[1724507485531,0.04044163,157.79,157.77,7.78]
[1724507494443,6.3293,157.93,157.78,7.78]
[1724507494634,6.33018177,157.86,157.8,7.78]
[1724507494839,6.33018177,157.85,157.79,7.78]
[1724507495039,10.946,157.86,157.79,10.96157847]
[1724507495246,6.32999128,157.85,157.79,10.96157847]
[1724507495433,0.04460047,157.84,157.8,0.04225315]
[1724507495638,7.82460047,157.84,157.8,0.04225315]
[1724507495939,7.78,157.83,157.8,0.04225315]
[1724507496737,10.9466,157.83,157.8,0.04225315]
[1724507497335,7.78,157.81,157.8,0.04225315]
[1724507501443,10.9469,157.81,157.76,0.74323399]
[1724507501744,10.9469,157.81,157.73,1.2834]
[1724507501745,10.9469,157.81,157.73,9.0634]
[1724507501951,10.9469,157.81,157.74,0.74326425]
[1724507502140,7.78,157.8,157.74,0.74326425]
[1724507502541,0.046581,157.79,157.75,0.04877817]
[1724507509045,0.046581,157.79,157.75,7.82877817]
[1724507509346,0.046581,157.79,157.76,7.78]
[1724507510346,0.046581,157.79,157.75,0.04877817]
[1724507510743,0.046581,157.79,157.75,0.79063709]
[1724507513463,0.046581,157.79,157.75,0.04877817]
[1724507513754,0.046581,157.79,157.75,0.79023115]
[1724507514953,0.046581,157.79,157.75,0.04877817]
[1724507515149,0.046581,157.79,157.75,0.79021003]
[1724507515452,3.213881,157.79,157.75,0.79021003]
[1724507515948,3.213881,157.79,157.75,0.04877817]
[1724507520447,10.993881,157.79,157.75,0.04877817]
[1724507520869,3.1676,157.78,157.75,0.04877817]
[1724507521048,7.78,157.77,157.75,0.04877817]
[1724507522264,10.993981,157.79,157.75,0.04877817]
[1724507522454,3.213981,157.79,157.75,0.04877817]
[1724507524963,3.213981,157.79,157.75,0.79131078]
[1724507525159,3.213981,157.79,157.75,0.04877817]
[1724507526661,3.213981,157.79,157.75,0.79131049]
[1724507526863,3.213981,157.79,157.75,0.04877817]
[1724507527664,10.9475,157.78,157.75,0.04877817]
[1724507530964,10.993981,157.79,157.75,0.04877817]
[1724507531264,7.78,157.78,157.75,0.04877817]
[1724507532262,10.9475,157.78,157.75,0.04877817]
[1724507533867,10.9475,157.78,157.75,0.79174039]
[1724507534073,10.9475,157.78,157.75,0.04877817]
[1724507538260,7.78,157.76,157.75,0.04877817]
[1724507546364,3.1676,157.78,157.75,0.04877817]
[1724507546576,0.046581,157.79,157.75,0.04877817]
[1724507547500,3.213981,157.79,157.75,0.04877817]
[1724507547691,0.046581,157.79,157.75,0.04877817]
[1724507547972,0.046581,157.79,157.75,8.57187559]
[1724507548168,0.046581,157.79,157.75,7.82877817]
[1724507548364,0.046581,157.79,157.75,0.04877817]
[1724507549880,0.046581,157.79,157.76,7.78]
[1724507550178,0.046581,157.79,157.75,0.04877817]
[1724507550375,0.046581,157.79,157.75,0.79172114]
[1724507551573,0.046581,157.79,157.76,7.78]
[1724507552878,0.046581,157.79,157.75,0.04877817]
[1724507553074,0.046581,157.79,157.75,0.79169955]
[1724507556882,0.046581,157.79,157.76,10.3641]
[1724507562988,0.046581,157.79,157.76,2.5841]
[1724507567799,0.046581,157.79,157.77,0.74307528]
[1724507568090,0.046581,157.79,157.77,8.52307528]
[1724507568290,0.046581,157.79,157.77,7.78]
[1724507585505,0.046581,157.79,157.78,7.78]
[1724507585712,0.046581,157.79,157.78,8.52278366]
[1724507587014,3.1658,157.87,157.78,8.52278366]
[1724507587015,10.9458,157.87,157.78,8.52278366]
[1724507587220,10.9458,157.87,157.8,7.78]
[1724507587919,0.04832609,157.85,157.82,0.04229437]
[1724507590916,0.04832609,157.85,157.82,3.26621217]
[1724507592918,7.82832609,157.85,157.82,3.26621217]
[1724507593122,7.82832609,157.85,157.82,0.04229437]
[1724507600360,0.04832609,157.85,157.82,0.04229437]
[1724507625649,0.04832609,157.85,157.82,3.20597429]
[1724507637562,0.04832609,157.85,157.83,7.78]
[1724507644069,0.04832609,157.85,157.82,7.12857429]
[1724507644261,7.78,157.84,157.82,0.04229437]
[1724507644459,0.04832609,157.85,157.82,0.04229437]
[1724507644666,7.78,157.84,157.82,0.04229437]
[1724507645864,0.04832609,157.85,157.82,0.04229437]
[1724507645865,7.82832609,157.85,157.82,0.04229437]
[1724507646468,0.04832609,157.85,157.82,0.04229437]
[1724507656672,3.21452609,157.85,157.82,0.04229437]
[1724507657765,3.1665,157.84,157.82,0.04229437]
[1724507657973,7.78,157.84,157.82,0.04229437]
[1724507658476,3.1665,157.83,157.82,0.04229437]
[1724507659569,3.1664,157.84,157.82,0.04229437]
[1724507660277,3.1665,157.83,157.82,0.04229437]
[1724507660780,3.1664,157.84,157.82,0.04229437]
[1724507667975,10.9463,157.84,157.82,0.04229437]
[1724507675401,3.1663,157.84,157.82,0.04229437]
[1724507676195,3.21452609,157.85,157.82,0.04229437]
[1724507676487,6.3300528,157.84,157.82,0.04229437]
[1724507676790,3.21452609,157.85,157.82,0.04229437]
[1724507676988,6.33005071,157.84,157.82,0.04229437]
[1724507677293,3.21452609,157.85,157.82,0.04229437]
[1724507677588,6.33005071,157.84,157.82,0.04229437]
[1724507677785,3.21452609,157.85,157.82,0.04229437]
[1724507681788,3.1663,157.84,157.82,0.04229437]
[1724507690193,7.78,157.84,157.82,0.04229437]
[1724507690396,7.78,157.83,157.82,0.04229437]
[1724507690690,3.1668,157.82,157.77,0.74548531]
[1724507690894,7.78,157.81,157.75,7.78]